[Event "46th GRE-chT Premier 2018"]
[Site "Rio Achaia"]
[Date "2018.07.11"]
[Round "2"]
[White "Leniart, Arkadiusz"]
[Black "Papaioannou, Ioannis"]
[Result "1/2-1/2"]
[ECO "B91"]
[WhiteElo "2489"]
[BlackElo "2647"]
[Annotator "RC"]
[PlyCount "79"]
[EventDate "2018.07.10"]
[EventType "team-tourn"]
[EventCountry "GRE"]
[SourceTitle "playchess.com"]
[Source "ChessBase"]
[SourceQuality "1"]
[TimeControl "40/5400+30:1800+30"]

1. e4 {[%emt 0:00:00]} c5 {[%emt 0:00:00]} 2. Nf3 {[%emt 0:00:00]} d6 {[%emt 0:00:00]} 3. d4 {[%emt 0:00:00]} cxd4 {[%emt 0:00:00]} 4. Nxd4 {[%emt 0:00:00]} Nf6 {[%emt 0:00:08]} 5. Nc3 {[%emt 0:00:00]} a6 {[%emt 0:00:08]} 6. g3 {[%emt 0:00:00]} e5 {[%emt 0:00:19]} 7. Nde2 {[%emt 0:00:00]} Be7 {[%emt 0:00:25]} 8. Bg2 {[%emt 0:00:00]} O-O {[%emt 0:00:21]} 9. O-O {[%emt 0:00:00]} Be6 {[%emt 0:00:17]} 10. a4 {[%emt 0:05:18]} Nbd7 {[%emt 0:00:45]} 11. h3 {[%emt 0:04:12]} Re8 {[%emt 0:03:22]} 12. b3 {[%emt 0:08:40]} Qc7 {[%emt 0:05:31]} 13. Be3 {[%emt 0:05:34]} Rac8 {[%emt 0:04:35]} 14. Ra2 {[%emt 0:02:53]} Nc5 {[%emt 0:04:10]} 15. Nd5 {[%emt 0:03:34]} Nxd5 {[%emt 0:02:05]} 16. exd5 {[%emt 0:00:06]} Bf5 {[%emt 0:00:09]} 17. g4 {[%emt 0:06:54]} Bg6 {[%emt 0:03:59]} 18. Ng3 {[%emt 0:01:29]} Qd8 {[%emt 0:06:33]} 19. a5 {[%emt 0:21:26]} Bh4 {[%emt 0:02:53]} 20. Qe2 {[%emt 0:05:26]} h6 {[%emt 0:04:41]} 21. Rd1 {[%emt 0:14:02]} Qe7 {[%emt 0:02:15]} 22. Bxc5 {[%emt 0:03:54]} Rxc5 {[%emt 0:00:39]} 23. c4 {[%emt 0:03:55]} e4 {[%emt 0:02:40]} 24. Nf1 {[%emt 0:06:48]} f5 {[%emt 0:02:56]} 25. gxf5 {[%emt 0:00:03]} Bxf5 {[%emt 0:00:06]} 26. Ne3 {[%emt 0:03:26]} Bd7 {[%emt 0:00:11]} 27. Qh5 {[%emt 0:01:51]} Rf8 {[%emt 0:00:31]} 28. Qg6 {[%emt 0:00:53]} Rf4 {[%emt 0:01:00]} 29. Rd4 {[%emt 0:01:41]} Qf6 {[%emt 0:09:17]} 30. Qxf6 {[%emt 0:00:05]} Bxf6 {[%emt 0:00:05]} 31. Rxe4 {[%emt 0:00:02]} Rxe4 {[%emt 0:00:08]} 32. Bxe4 {[%emt 0:00:03]} Bxh3 {[%emt 0:00:15]} 33. b4 {[%emt 0:02:13]} Rc8 {[%emt 0:00:44]} 34. Kh2 {[%emt 0:00:30]} Bd7 {[%emt 0:00:08]} 35. Rc2 {[%emt 0:00:37]} Re8 {[%emt 0:06:29]} 36. f3 {[%emt 0:00:19]} Bg5 {[%emt 0:02:50]} 37. Rc3 {[%emt 0:00:46]} Bf6 {[%emt 0:01:15]} 38. Rc2 {[%emt 0:00:11]} Bg5 {[%emt 0:01:17]} 39. Rc3 {[%emt 0:00:03]} Bf6 {[%emt 0:02:18]} 40. Rc2 {[%emt 0:00:00]} 1/2-1/2

[Event "46th GRE-chT Premier 2018"]
[Site "Rio Achaia"]
[Date "2018.07.11"]
[Round "2"]
[White "Paehtz, Elisabeth"]
[Black "Pavlidou, Ekaterini"]
[Result "1-0"]
[ECO "C50"]
[WhiteElo "2489"]
[BlackElo "2186"]
[Annotator "ChessBase"]
[PlyCount "85"]
[EventDate "2018.07.10"]
[EventType "team-tourn"]
[EventCountry "GRE"]
[SourceTitle "playchess.com"]
[Source "ChessBase"]
[SourceQuality "1"]
[TimeControl "40/5400+30:1800+30"]

1. e4 {[%emt 0:00:00]} e5 {[%emt 0:00:17]} 2. Nf3 {[%emt 0:00:00]} Nc6 {[%emt 0:00:16]} 3. Bc4 {[%emt 0:00:20]} Bc5 {[%emt 0:01:18]} 4. d3 {[%emt 0:00:04]} h6 {[%emt 0:02:42]} 5. c3 {[%emt 0:00:29]} d6 {[%emt 0:03:29]} 6. h3 {[%emt 0:14:09]} Nge7 {[%emt 0:06:04]} 7. b4 {[%emt 0:07:27]} Bb6 {[%emt 0:00:14]} 8. a4 {[%emt 0:00:03]} a5 {[%emt 0:01:14]} 9. b5 {[%emt 0:00:49]} Nb8 {[%emt 0:00:30]} 10. Nbd2 {[%emt 0:03:09]} Nd7 {[%emt 0:01:33]} 11. Ba2 {[%emt 0:00:47]} Nc5 {[%emt 0:01:58]} 12. Nc4 {[%emt 0:02:07]} Ba7 {[%emt 0:07:48]} 13. O-O {[%emt 0:02:22]} g5 {[%emt 0:05:36]} 14. Re1 {[%emt 0:16:12]} Ng6 {[%emt 0:08:43]} 15. d4 {[%emt 0:00:24]} exd4 {[%emt 0:03:14]} 16. cxd4 {[%emt 0:00:45]} Ne6 {[%emt 0:00:08]} 17. Nxa5 {[%emt 0:11:59]} Nef4 {[%emt 0:01:31]} 18. Qb3 {[%emt 0:03:54]} Be6 {[%emt 0:04:20]} 19. Qc3 {[%emt 0:00:08]} Bxh3 {[%emt 0:06:41]} 20. gxh3 {[%emt 0:00:42]} Qd7 {[%emt 0:00:07]} 21. Qc4 {[%emt 0:13:53]} O-O {[%emt 0:06:29]} 22. Bxf4 {[%emt 0:00:44]} Nxf4 {[%emt 0:00:09]} 23. Re3 {[%emt 0:03:20]} Qxh3 {[%emt 0:07:35]} 24. Ne1 {[%emt 0:05:04]} Qg4+ {[%emt 0:00:15]} 25. Kf1 {[%emt 0:00:07]} Qh5 {[%emt 0:10:43]} 26. Kg1 {[%emt 0:00:47]} Qg4+ {[%emt 0:00:06]} 27. Kf1 {[%emt 0:00:05]} Qh5 {[%emt 0:00:05]} 28. Rg3 {[%emt 0:05:28]} Qh1+ {[%emt 0:01:05]} 29. Rg1 {[%emt 0:00:04]} Qxe4 {[%emt 0:01:10]} 30. Nb3 {[%emt 0:00:42]} Rae8 {[%emt 0:01:08]} 31. Qc2 {[%emt 0:02:51]} Qe6 {[%emt 0:00:46]} 32. Rg3 {[%emt 0:01:40]} Qd5 {[%emt 0:00:31]} 33. Ng2 {[%emt 0:01:02]} Nxg2 {[%emt 0:08:30]} 34. Rxg2 {[%emt 0:00:30]} Bxd4 {[%emt 0:00:49]} 35. Rd1 {[%emt 0:00:45]} Bc3 {[%emt 0:00:08]} 36. Nd2 {[%emt 0:01:32]} Qe5 {[%emt 0:03:31]} 37. Nf3 {[%emt 0:00:44]} Qg7 {[%emt 0:00:08]} 38. Nh4 {[%emt 0:01:34]} Qe5 {[%emt 0:03:05]} 39. Qg6+ {[%emt 0:01:03]} Qg7 {[%emt 0:00:13]} 40. Qd3 {[%emt 0:00:00]} Qe5 {[%emt 0:00:00]} 41. Rg3 {[%emt 0:01:52]} Qe4 {[%emt 0:02:55]} 42. Ng6 {[%emt 0:11:23]} Qxa4 {[%emt 0:02:46]} 43. Bc4 {[%emt 0:03:55]} 1-0

[Event "46th GRE-chT Premier 2018"]
[Site "Rio Achaia"]
[Date "2018.07.11"]
[Round "2"]
[White "Tzermiadianos, Andreas"]
[Black "Deligiannis, Paraskevas"]
[Result "1-0"]
[ECO "C24"]
[WhiteElo "2437"]
[BlackElo "2061"]
[Annotator "NA"]
[PlyCount "95"]
[EventDate "2018.07.10"]
[EventType "team-tourn"]
[EventCountry "GRE"]
[SourceTitle "playchess.com"]
[Source "ChessBase"]
[SourceQuality "1"]
[TimeControl "40/5400+30:1800+30"]

1. e4 {[%emt 0:00:00]} e5 {[%emt 0:00:00]} 2. Bc4 {[%emt 0:00:00]} Nf6 {[%emt 0:00:10]} 3. d3 {[%emt 0:00:00]} c6 {[%emt 0:01:15]} 4. Nf3 {[%emt 0:00:06]} d5 {[%emt 0:00:17]} 5. Bb3 {[%emt 0:00:02]} Bd6 {[%emt 0:00:26]} 6. Nc3 {[%emt 0:00:31]} dxe4 {[%emt 0:01:24]} 7. Ng5 {[%emt 0:03:43]} O-O {[%emt 0:00:20]} 8. Ngxe4 {[%emt 0:00:11]} Nxe4 {[%emt 0:01:01]} 9. Nxe4 {[%emt 0:02:00]} Bf5 {[%emt 0:01:43]} 10. Ng3 {[%emt 0:06:46]} Qd7 {[%emt 0:07:22]} 11. Nxf5 {[%emt 0:11:14]} Qxf5 {[%emt 0:00:07]} 12. g4 {[%emt 0:02:13]} Qf6 $11 {[%emt 0:15:46]} 13. h4 {[%emt 0:07:46]} Bc5 {[%emt 0:02:49]} 14. Qe2 {[%emt 0:05:25]} a5 {[%emt 0:01:53]} 15. a3 {[%emt 0:02:42]} a4 {[%emt 0:00:51]} 16. Ba2 {[%emt 0:00:35]} Na6 {[%emt 0:00:42]} 17. g5 {[%emt 0:06:01]} Qf5 {[%emt 0:02:39]} 18. Be3 {[%emt 0:02:16]} Be7 {[%emt 0:08:55]} 19. Rg1 {[%emt 0:03:14]} Nc7 {[%emt 0:05:38]} 20. Qg4 {[%emt 0:00:52]} Qxg4 {[%emt 0:00:53]} 21. Rxg4 {[%emt 0:00:02]} Kh8 {[%emt 0:04:05]} 22. O-O-O {[%emt 0:04:53]} Nd5 {[%emt 0:03:39]} 23. Re1 {[%emt 0:07:09]} Nxe3 {[%emt 0:03:24]} 24. Rxe3 {[%emt 0:00:53]} f5 {[%emt 0:04:03]} 25. gxf6 {[%emt 0:01:28]} Bxf6 {[%emt 0:02:45]} 26. h5 {[%emt 0:01:04]} Rad8 {[%emt 0:08:26]} 27. Kd1 {[%emt 0:04:34]} b5 {[%emt 0:01:26]} 28. c3 {[%emt 0:01:41]} Rde8 {[%emt 0:02:49]} 29. Ke2 {[%emt 0:00:35]} h6 {[%emt 0:03:45]} 30. Rf3 {[%emt 0:04:07]} Bg5 {[%emt 0:00:39]} 31. Bf7 {[%emt 0:04:48]} e4 {[%emt 0:08:12]} 32. dxe4 {[%emt 0:09:01]} Re7 {[%emt 0:00:16]} 33. Bg6 {[%emt 0:02:44]} Rxf3 {[%emt 0:00:07]} 34. Kxf3 {[%emt 0:00:03]} Bc1 {[%emt 0:00:19]} 35. Rg1 {[%emt 0:01:23]} Bg5 {[%emt 0:03:30]} 36. Rd1 {[%emt 0:00:42]} Rc7 {[%emt 0:00:34]} 37. e5 {[%emt 0:00:15]} Kg8 {[%emt 0:00:24]} 38. Ke4 {[%emt 0:00:51]} Kf8 {[%emt 0:00:22]} 39. f4 {[%emt 0:00:12]} Bh4 {[%emt 0:00:27]} 40. Kf3 {[%emt 0:00:00]} Be7 {[%emt 0:00:00]} 41. Ke4 {[%emt 0:03:46]} Bh4 {[%emt 0:03:23]} 42. Bf5 {[%emt 0:00:08]} Ke7 {[%emt 0:01:06]} 43. Rg1 {[%emt 0:00:14]} Ke8 {[%emt 0:00:55]} 44. Rg6 {[%emt 0:01:05]} Be1 {[%emt 0:03:58]} 45. Re6+ {[%emt 0:01:39]} Kf7 {[%emt 0:02:50]} 46. Rd6 {[%emt 0:00:43]} Ke7 {[%emt 0:00:23]} 47. Kf3 {[%emt 0:00:37]} Bh4 {[%emt 0:01:34]} 48. Be4 {[%emt 0:00:42]} 1-0

[Event "46th GRE-chT Premier 2018"]
[Site "Rio Achaia"]
[Date "2018.07.11"]
[Round "2"]
[White "Morozov, Nichita"]
[Black "Dochev, Dimitar"]
[Result "1-0"]
[ECO "E71"]
[WhiteElo "2429"]
[BlackElo "2399"]
[Annotator "NA"]
[PlyCount "91"]
[EventDate "2018.07.10"]
[EventType "team-tourn"]
[EventCountry "GRE"]
[SourceTitle "playchess.com"]
[Source "ChessBase"]
[SourceQuality "1"]
[TimeControl "40/5400+30:1800+30"]

1. d4 {[%emt 0:00:00]} Nf6 {[%emt 0:00:00]} 2. c4 {[%emt 0:00:00]} g6 {[%emt 0:00:00]} 3. Nc3 {[%emt 0:00:00]} Bg7 {[%emt 0:00:04]} 4. e4 {[%emt 0:00:00]} d6 {[%emt 0:00:08]} 5. h3 {[%emt 0:00:00]} O-O {[%emt 0:00:48] LiveBook: 3071 Games} 6. Be3 $14 {[%emt 0:00:00]} e5 {[%emt 0:04:53]} 7. d5 {[%emt 0:00:10]} Na6 {[%emt 0:05:18]} 8. Nf3 {[%emt 0:01:29]} Nh5 {[%emt 0:12:32]} 9. g3 {[%emt 0:00:03]} f5 {[%emt 0:08:26]} 10. exf5 {[%emt 0:00:08]} gxf5 {[%emt 0:00:07]} 11. Nh4 {[%emt 0:00:11]} Qe8 {[%emt 0:08:27]} 12. Be2 {[%emt 0:04:05]} Nf6 {[%emt 0:01:59]} 13. Qc2 {[%emt 0:02:11]} Nb4 {[%emt 0:15:47]} 14. Qb3 {[%emt 0:04:03]} a5 {[%emt 0:03:39]} 15. a3 {[%emt 0:01:29]} Na6 {[%emt 0:09:47]} 16. Qc2 {[%emt 0:00:08]} f4 {[%emt 0:04:23]} 17. gxf4 {[%emt 0:14:23]} exf4 {[%emt 0:00:06]} 18. Bd4 {[%emt 0:00:06]} Nd7 {[%emt 0:06:01]} 19. Rg1 {[%emt 0:05:28]} Ne5 {[%emt 0:00:07]} 20. Ne4 {[%emt 0:00:09]} Nc5 {[%emt 0:06:14]} 21. Nxc5 {[%emt 0:03:25]} dxc5 {[%emt 0:00:05]} 22. Bc3 {[%emt 0:00:03]} f3 {[%emt 0:08:45]} 23. Rxg7+ {[%emt 0:04:20]} Kxg7 {[%emt 0:00:03]} 24. Qe4 {[%emt 0:04:00]} fxe2 {[%emt 0:01:23]} 25. Bxe5+ {[%emt 0:00:03]} Kh6 {[%emt 0:00:22]} 26. Qe3+ {[%emt 0:05:05]} Kh5 {[%emt 0:00:07]} 27. Ng2 {[%emt 0:00:26]} Qg6 {[%emt 0:01:04]} 28. Qxe2+ {[%emt 0:01:31]} Kh6 {[%emt 0:00:05]} 29. Qe3+ {[%emt 0:02:52]} Kh5 {[%emt 0:00:05]} 30. Nf4+ {[%emt 0:00:37]} Rxf4 {[%emt 0:00:07]} 31. Qxf4 {[%emt 0:00:22]} Bxh3 {[%emt 0:03:23]} 32. Kd2 {[%emt 0:02:45]} Qg5 {[%emt 0:00:15]} 33. Rh1 {[%emt 0:02:00]} Qxf4+ {[%emt 0:00:08]} 34. Bxf4 {[%emt 0:00:02]} Kg4 {[%emt 0:00:09]} 35. Bxc7 {[%emt 0:00:13]} Rf8 {[%emt 0:00:16]} 36. Rg1+ {[%emt 0:04:21]} Kh4 {[%emt 0:00:39]} 37. f4 {[%emt 0:02:49]} h5 {[%emt 0:00:08]} 38. Ke3 {[%emt 0:01:09]} Bf5 {[%emt 0:01:37]} 39. Kf3 {[%emt 0:00:27]} Bg4+ {[%emt 0:00:05]} 40. Kf2 {[%emt 0:00:00]} Bd7 {[%emt 0:00:00]} 41. Rg7 {[%emt 0:03:07]} Bg4 {[%emt 0:05:06]} 42. Bd6 {[%emt 0:02:03]} Re8 {[%emt 0:01:09]} 43. Be7+ {[%emt 0:00:08]} Kh3 {[%emt 0:00:06]} 44. d6 {[%emt 0:01:21]} a4 {[%emt 0:00:54]} 45. Rg5 {[%emt 0:01:58]} b6 {[%emt 0:02:36]} 46. f5 {[%emt 0:00:14]} 1-0

[Event "46th GRE-chT Premier 2018"]
[Site "Rio Achaia"]
[Date "2018.07.11"]
[Round "2"]
[White "Warmerdam, Max"]
[Black "Mitsis, Georgios"]
[Result "1-0"]
[ECO "A40"]
[WhiteElo "2424"]
[BlackElo "2350"]
[Annotator "NA"]
[PlyCount "127"]
[EventDate "2018.07.10"]
[EventType "team-tourn"]
[EventCountry "GRE"]
[SourceTitle "playchess.com"]
[Source "ChessBase"]
[SourceQuality "1"]
[TimeControl "40/5400+30:1800+30"]

1. d4 {[%emt 0:00:00]} Nf6 {[%emt 0:02:13]} 2. c4 {[%emt 0:00:00]} e6 {[%emt 0:00:13]} 3. g3 {[%emt 0:00:00]} d5 {[%emt 0:01:49]} 4. Nf3 {[%emt 0:00:00]} Bb4+ {[%emt 0:01:54]} 5. Bd2 {[%emt 0:00:07]} Bd6 {[%emt 0:00:31]} 6. Bg2 {[%emt 0:01:36]} c6 {[%emt 0:03:23]} 7. O-O {[%emt 0:07:08]} Nbd7 {[%emt 0:00:42]} 8. Qb3 {[%emt 0:20:15]} O-O {[%emt 0:02:21]} 9. Rc1 {[%emt 0:10:05]} dxc4 {[%emt 0:05:23]} 10. Qxc4 {[%emt 0:18:13]} e5 {[%emt 0:03:30]} 11. Nc3 {[%emt 0:02:01]} exd4 {[%emt 0:09:29]} 12. Qxd4 {[%emt 0:00:54]} Bc5 {[%emt 0:06:16]} 13. Qh4 {[%emt 0:00:07]} Be7 {[%emt 0:09:46]} 14. Rd1 {[%emt 0:02:32]} Nd5 {[%emt 0:03:13]} 15. Qd4 {[%emt 0:14:19]} Bf6 {[%emt 0:03:42]} 16. Qd3 {[%emt 0:00:13]} Nxc3 {[%emt 0:14:14]} 17. Bxc3 {[%emt 0:00:05]} Bxc3 {[%emt 0:00:24]} 18. Qxc3 {[%emt 0:00:34]} Qe7 {[%emt 0:00:14]} 19. Nd4 {[%emt 0:03:05]} Nf6 {[%emt 0:06:13]} 20. Rd3 {[%emt 0:02:08]} Bd7 {[%emt 0:06:26]} 21. Rad1 {[%emt 0:00:24]} Rac8 {[%emt 0:03:32]} 22. Re3 {[%emt 0:02:46]} Qd6 {[%emt 0:01:29]} 23. Red3 {[%emt 0:04:44]} Qe7 {[%emt 0:01:00]} 24. Qd2 {[%emt 0:01:54]} c5 {[%emt 0:01:39]} 25. Nb3 {[%emt 0:01:30]} Be6 {[%emt 0:00:40]} 26. Na5 {[%emt 0:00:10]} Rb8 {[%emt 0:11:52]} 27. b3 {[%emt 0:00:14]} h6 {[%emt 0:00:06]} 28. Qc3 {[%emt 0:01:23]} Rfc8 {[%emt 0:00:35]} 29. Qe5 {[%emt 0:00:27]} Ng4 {[%emt 0:01:06]} 30. Qf4 {[%emt 0:00:08]} g5 {[%emt 0:00:26]} 31. Qe4 {[%emt 0:00:39]} Qf6 {[%emt 0:00:30]} 32. Qf3 {[%emt 0:06:02]} Qxf3 {[%emt 0:00:10]} 33. Bxf3 {[%emt 0:00:07]} Ne5 {[%emt 0:00:05]} 34. Bxb7 {[%emt 0:00:07]} Nxd3 {[%emt 0:00:51]} 35. Bxc8 {[%emt 0:00:05]} Nxf2 {[%emt 0:00:28]} 36. Kxf2 {[%emt 0:01:01]} Rxc8 {[%emt 0:00:02]} 37. Rc1 {[%emt 0:00:05]} Kf8 {[%emt 0:00:17]} 38. Nb7 {[%emt 0:00:12]} c4 {[%emt 0:01:38]} 39. Nd6 {[%emt 0:00:03]} Rc6 {[%emt 0:00:32]} 40. Nxc4 {[%emt 0:00:00]} Bxc4 {[%emt 0:00:00]} 41. Rxc4 {[%emt 0:06:31]} Re6 {[%emt 0:04:24]} 42. a4 {[%emt 0:02:37]} Kg7 {[%emt 0:01:00]} 43. b4 {[%emt 0:00:11]} a6 {[%emt 0:06:54]} 44. b5 {[%emt 0:01:30]} axb5 {[%emt 0:00:42]} 45. axb5 {[%emt 0:00:15]} Rb6 {[%emt 0:00:06]} 46. Rc5 {[%emt 0:02:38]} Rf6+ {[%emt 0:03:52]} 47. Ke1 {[%emt 0:00:53]} Rd6 {[%emt 0:00:53]} 48. Rc3 {[%emt 0:00:48]} Rb6 {[%emt 0:00:16]} 49. Rb3 {[%emt 0:00:16]} Kf6 {[%emt 0:00:05]} 50. Kd2 {[%emt 0:00:03]} Ke5 {[%emt 0:00:08]} 51. Kc3 {[%emt 0:00:11]} Kd5 {[%emt 0:01:39]} 52. Kb4 {[%emt 0:00:04]} Rb8 {[%emt 0:00:50]} 53. Rf3 {[%emt 0:02:18]} Ke6 {[%emt 0:00:23]} 54. Rc3 {[%emt 0:00:11]} h5 {[%emt 0:02:23]} 55. Rc6+ {[%emt 0:00:40]} Ke5 {[%emt 0:00:11]} 56. b6 {[%emt 0:00:14]} f5 {[%emt 0:00:42]} 57. Rg6 {[%emt 0:01:09]} h4 {[%emt 0:01:24]} 58. Kb5 {[%emt 0:01:21]} hxg3 {[%emt 0:00:28]} 59. hxg3 {[%emt 0:00:03]} g4 {[%emt 0:00:48]} 60. Rc6 {[%emt 0:01:21]} Kd5 {[%emt 0:01:55]} 61. Rc5+ {[%emt 0:01:12]} Ke6 {[%emt 0:00:23]} 62. Ka6 {[%emt 0:00:26]} Ra8+ {[%emt 0:00:18]} 63. Kb7 {[%emt 0:00:06]} Ra2 {[%emt 0:00:06]} 64. Kc7 {[%emt 0:00:31]} 1-0

[Event "46th GRE-chT Premier 2018"]
[Site "Rio Achaia"]
[Date "2018.07.11"]
[Round "2"]
[White "Zysk, Robert"]
[Black "Yilmaz, Mustafa"]
[Result "0-1"]
[ECO "D38"]
[WhiteElo "2421"]
[BlackElo "2624"]
[Annotator "ChessBase"]
[PlyCount "90"]
[EventDate "2018.07.10"]
[EventType "team-tourn"]
[EventCountry "GRE"]
[SourceTitle "playchess.com"]
[Source "ChessBase"]
[SourceQuality "1"]
[TimeControl "40/5400+30:1800+30"]

1. Nf3 {[%emt 0:00:00]} Nf6 {[%emt 0:00:00]} 2. c4 {[%emt 0:00:38]} e6 {[%emt 0:00:04]} 3. Nc3 {[%emt 0:00:06]} d5 {[%emt 0:01:14]} 4. d4 {[%emt 0:02:54]} Bb4 {[%emt 0:02:55]} 5. e3 {[%emt 0:04:42]} O-O {[%emt 0:00:41]} 6. Bd2 {[%emt 0:01:56]} b6 {[%emt 0:04:42]} 7. Rc1 {[%emt 0:11:42]} Bb7 {[%emt 0:02:52]} 8. cxd5 {[%emt 0:02:22]} exd5 {[%emt 0:00:51]} 9. Nb5 {[%emt 0:07:30]} Bxd2+ {[%emt 0:02:15]} 10. Nxd2 {[%emt 0:00:06]} a6 {[%emt 0:08:39]} 11. Nc3 {[%emt 0:00:06]} c5 {[%emt 0:01:31]} 12. Nf3 {[%emt 0:02:50]} c4 {[%emt 0:06:37]} 13. g3 {[%emt 0:02:51]} Nbd7 {[%emt 0:05:07]} 14. Bg2 {[%emt 0:00:25]} Re8 {[%emt 0:00:31]} 15. O-O {[%emt 0:00:09]} b5 {[%emt 0:00:41]} 16. a3 {[%emt 0:11:00]} Bc6 {[%emt 0:02:15]} 17. Nd2 {[%emt 0:00:39]} Nb6 {[%emt 0:07:25]} 18. Re1 {[%emt 0:03:09]} Ra7 {[%emt 0:01:24]} 19. Ne2 {[%emt 0:06:39]} Qd6 {[%emt 0:07:39]} 20. Nf4 {[%emt 0:02:04]} a5 {[%emt 0:03:08]} 21. h4 {[%emt 0:05:31]} g6 {[%emt 0:05:46]} 22. g4 {[%emt 0:05:19]} b4 {[%emt 0:03:28]} 23. g5 {[%emt 0:00:12]} Nfd7 {[%emt 0:01:08]} 24. Qg4 {[%emt 0:12:00]} bxa3 {[%emt 0:04:57]} 25. bxa3 {[%emt 0:00:04]} Qxa3 {[%emt 0:00:41]} 26. Nb1 {[%emt 0:02:37]} Qd6 {[%emt 0:01:43]} 27. Nc3 {[%emt 0:00:13]} a4 {[%emt 0:01:08]} 28. e4 {[%emt 0:01:11]} dxe4 {[%emt 0:09:06]} 29. d5 {[%emt 0:00:30]} f5 {[%emt 0:02:53]} 30. Qg3 {[%emt 0:04:27]} Ba8 {[%emt 0:00:12]} 31. Nb5 {[%emt 0:00:30]} Qb8 {[%emt 0:00:02]} 32. Nxa7 {[%emt 0:01:15]} Qxa7 {[%emt 0:00:01]} 33. h5 {[%emt 0:00:50]} Ne5 {[%emt 0:00:24]} 34. Bxe4 {[%emt 0:06:54]} fxe4 {[%emt 0:01:00]} 35. Rxe4 {[%emt 0:00:02]} Qf7 {[%emt 0:03:01]} 36. Rce1 {[%emt 0:01:32]} Nbd7 {[%emt 0:00:30]} 37. R1e3 {[%emt 0:02:05]} Rc8 {[%emt 0:06:43]} 38. hxg6 {[%emt 0:00:10]} hxg6 {[%emt 0:00:02]} 39. Qh3 {[%emt 0:00:46]} Rf8 {[%emt 0:04:32]} 40. Qe6 {[%emt 0:00:00]} Qxe6 {[%emt 0:00:00]} 41. Nxe6 {[%emt 0:07:39]} Rc8 {[%emt 0:09:55]} 42. Rxe5 {[%emt 0:01:39]} Nxe5 {[%emt 0:00:32]} 43. Rxe5 {[%emt 0:00:08]} c3 {[%emt 0:05:00]} 44. Nd4 {[%emt 0:00:11]} Kf7 {[%emt 0:03:42]} 45. Nc2 {[%emt 0:10:10]} Re8 {[%emt 0:04:56]} 0-1

[Event "46th GRE-chT Premier 2018"]
[Site "Rio Achaia"]
[Date "2018.07.11"]
[Round "2"]
[White "Zimina, Olga"]
[Black "Cornette, Deimante"]
[Result "1-0"]
[ECO "A29"]
[WhiteElo "2411"]
[BlackElo "2470"]
[Annotator "ChessBase"]
[PlyCount "89"]
[EventDate "2018.07.10"]
[EventType "team-tourn"]
[EventCountry "GRE"]
[SourceTitle "playchess.com"]
[Source "ChessBase"]
[SourceQuality "1"]
[TimeControl "40/5400+30:1800+30"]

1. c4 {[%emt 0:01:44]} e5 {[%emt 0:00:22]} 2. Nc3 {[%emt 0:00:08]} Nf6 {[%emt 0:00:14]} 3. Nf3 {[%emt 0:00:30]} Nc6 {[%emt 0:00:23]} 4. g3 {[%emt 0:00:06]} g6 {[%emt 0:10:22]} 5. Bg2 {[%emt 0:00:13]} Bg7 {[%emt 0:00:10]} 6. O-O {[%emt 0:00:07]} O-O {[%emt 0:00:14]} 7. d3 {[%emt 0:05:49]} d6 {[%emt 0:00:53]} 8. Rb1 {[%emt 0:00:09]} a5 {[%emt 0:01:59]} 9. a3 {[%emt 0:00:31]} Bf5 {[%emt 0:01:22]} 10. e4 {[%emt 0:03:29]} Bg4 {[%emt 0:10:37]} 11. h3 {[%emt 0:03:44]} Bxf3 {[%emt 0:00:28]} 12. Bxf3 {[%emt 0:02:49]} Nd7 {[%emt 0:04:51]} 13. Bg2 {[%emt 0:03:41]} Nc5 {[%emt 0:01:56]} 14. Be3 {[%emt 0:12:47]} Ne6 {[%emt 0:04:10]} 15. f4 {[%emt 0:10:45]} exf4 {[%emt 0:13:32]} 16. gxf4 {[%emt 0:00:14]} Ned4 {[%emt 0:00:24]} 17. Qd2 {[%emt 0:11:23]} f5 {[%emt 0:13:59]} 18. Qf2 {[%emt 0:07:56]} a4 {[%emt 0:10:03]} 19. Nb5 {[%emt 0:03:52]} Nxb5 {[%emt 0:03:16]} 20. cxb5 {[%emt 0:00:04]} Ne7 {[%emt 0:00:34]} 21. Bd4 {[%emt 0:05:22]} c5 {[%emt 0:04:36]} 22. bxc6 {[%emt 0:15:44]} bxc6 {[%emt 0:00:06]} 23. Bxg7 {[%emt 0:00:58]} Kxg7 {[%emt 0:00:05]} 24. Qd4+ {[%emt 0:00:13]} Kh6 {[%emt 0:00:58]} 25. b4 {[%emt 0:02:28]} Rb8 {[%emt 0:03:21]} 26. Kh1 {[%emt 0:01:22]} Qc7 {[%emt 0:04:35]} 27. Rbc1 {[%emt 0:00:45]} Rb5 {[%emt 0:00:42]} 28. Qc4 {[%emt 0:01:30]} Qd7 {[%emt 0:01:22]} 29. e5 {[%emt 0:01:01]} dxe5 {[%emt 0:04:10]} 30. fxe5 {[%emt 0:00:02]} Rd8 {[%emt 0:02:00]} 31. Qh4+ {[%emt 0:00:21]} Kg7 {[%emt 0:00:04]} 32. Qf6+ {[%emt 0:00:04]} Kg8 {[%emt 0:00:19]} 33. d4 {[%emt 0:04:04]} Nd5 {[%emt 0:03:16]} 34. Qxc6 {[%emt 0:00:21]} Qxc6 {[%emt 0:00:16]} 35. Rxc6 {[%emt 0:00:06]} Ne3 {[%emt 0:00:13]} 36. Re1 {[%emt 0:01:39]} Nxg2 {[%emt 0:00:09]} 37. Kxg2 {[%emt 0:00:04]} Rxd4 {[%emt 0:00:15]} 38. Rc8+ {[%emt 0:00:52]} Kf7 {[%emt 0:01:11]} 39. e6+ {[%emt 0:00:10]} Ke7 {[%emt 0:00:04]} 40. Rc7+ {[%emt 0:00:00]} Ke8 {[%emt 0:00:00]} 41. Rxh7 {[%emt 0:02:26]} Rbd5 {[%emt 0:07:46]} 42. Rc1 {[%emt 0:04:44]} Rd8 {[%emt 0:10:44]} 43. Rcc7 {[%emt 0:01:42]} Rd2+ {[%emt 0:01:23]} 44. Kf3 {[%emt 0:00:27]} R8d3+ {[%emt 0:01:12]} 45. Kf4 {[%emt 0:00:09]} 1-0